fUSD/lending_fUSD_20260318
["ID","MTS","AMOUNT","RATE_DAILY","PERIOD"]
[408534809,1773853844157,-500.0,0.00015999,2]
[408534810,1773853844166,-500.0,0.00015999,2]
[408534811,1773853844175,-500.0,0.00015999,2]
[408534812,1773853844184,-500.0,0.00015999,2]
[408534813,1773853844193,-186.16,0.00015999,2]
[408534814,1773853844202,-500.0,0.00015999,2]
[408534815,1773853844211,-500.0,0.00015999,2]
[408534816,1773853844220,-500.0,0.00015999,2]
[408534817,1773853844229,-2218.0,0.00016,5]
[408534818,1773853844240,-2175616.98410321,0.00016,2]
[408534819,1773853844280,-1151.56048761,0.00016,2]
[408534820,1773853844291,-3478.09586045,0.00016,2]
[408534821,1773853844352,-288559.46164335,0.00016,2]
[408534822,1773853844363,-46167.80851959,0.00016,2]
[408534823,1773853844682,-15334.07470828,0.00016,2]
[408534824,1773853844694,-11278.16870976,0.00016,2]
[408534829,1773853845594,-601.73647352,0.000158,2]
[408534836,1773853845854,-2000.0,0.000157,2]
[408534837,1773853845864,-547.5882,0.000158,2]
[408534838,1773853845908,-850.67532648,0.000158,2]
[408534839,1773853845918,-460.11032266,0.000159,2]
[408534840,1773853845963,-1539.88967734,0.000159,2]
[408534841,1773853845972,-460.11032266,0.00016,2]
[408534842,1773853846020,-11053.57,0.00016,2]
[408534843,1773853846032,-253.207,0.00016,2]
[408534862,1773853897202,255.44,0.000163,120]
[408534868,1773854086408,229.89,0.000163,120]
[408534875,1773854275998,206.9,0.000163,120]
[408534880,1773854466447,186.21,0.000163,120]
[408534887,1773854661317,167.59,0.000163,120]
[408534894,1773854851580,150.83,0.000163,120]
[408534896,1773854939292,10000.01,9.5e-05,3]
[408534897,1773854939320,220500.6760322,9.5e-05,3]
[408534904,1773855031751,-244.0,0.00011546,2]
[408534906,1773855031761,-166.90749237,0.00011546,2]
[408534907,1773855031770,-150.0,0.00011546,2]
[408534908,1773855031780,-10.60170763,0.00011546,2]
[408534909,1773855031791,-910.24829237,0.00011546,2]
[408534910,1773855031801,-306.86226984,0.00012701,2]
[408534911,1773855031811,-250.0,0.00012701,2]
[408534912,1773855031821,-76.45997845,0.00013011,2]
[408534913,1773855031842,-104.24782071,0.00013011,2]
[408534914,1773855031852,-500.0,0.00013396,2]
[408534915,1773855031862,-150.0,0.00013396,7]
[408534916,1773855031872,-1986.6,0.00013428,2]
[408534917,1773855031881,-156.5,0.00013444,2]
[408534918,1773855031890,-1072.777977,0.0001363,2]
[408534919,1773855031900,-200.0,0.00013699,2]
[408534920,1773855031909,-829.87420229,0.00014082,2]
[408534921,1773855031925,-770.12579771,0.00014082,2]
[408534922,1773855031934,-23.1670552,0.00014138,2]
[408534923,1773855031945,-367.55852767,0.00014138,2]
[408534924,1773855031960,-809.27441713,0.00014138,2]
[408534925,1773855031969,-300.0,0.00014139,2]
[408534926,1773855031978,-300.0,0.00014139,2]
[408534927,1773855031988,-300.0,0.00014139,2]
[408534928,1773855031997,-2683.1,0.0001414,2]
[408534929,1773855032007,-301.01377224,0.000142,2]
[408534930,1773855032016,-150.0,0.00014242,2]
[408534931,1773855032026,-1049.41181063,0.00014242,2]
[408534933,1773855032041,-86.46818937,0.00014242,2]
[408534935,1773855032051,-268.53181064,0.00014256,2]
[408534936,1773855032062,-2169.04012706,0.00014256,2]
[408534937,1773855032071,-29854.45295932,0.00014277,2]
[408534938,1773855032082,-5780.2606937,0.00014277,2]
[408534939,1773855032091,-150.0,0.00014289,2]
[408534940,1773855032101,-1391.2093,0.0001429,2]
[408534941,1773855032113,-61419.5631,0.0001429,2]
[408534942,1773855032122,-500.0,0.00014356,2]
[408534943,1773855032131,-1000.0,0.00014356,2]
[408534944,1773855032140,-500.0,0.00014381,2]
[408534945,1773855032149,-500.0,0.00014381,2]
[408534946,1773855032158,-200.0,0.00014381,2]
[408534947,1773855032166,-151.0,0.00014381,2]
[408534948,1773855032175,-1000.0,0.00014389,2]
[408534949,1773855032184,-1597.95913814,0.00014389,2]
[408534950,1773855032194,-152024.2625,0.0001439,2]
[408534951,1773855032203,-1988.65371816,0.00014404,2]
[408534952,1773855032211,-500.0,0.00014489,2]
[408534953,1773855032220,-500.0,0.00014489,2]
[408534954,1773855032229,-500.0,0.00014503,2]
[408534955,1773855032238,-440.45763289,0.00014503,2]
[408534956,1773855032247,-690.7998852,0.00014503,2]
[408534957,1773855032256,-500.0,0.00014503,2]
[408534958,1773855032265,-94.07854936,0.00014503,2]
[408534959,1773855032276,-405.92145064,0.00014503,2]
[408534961,1773855032285,-690.7998852,0.00014503,2]
[408534962,1773855032294,-341.78195786,0.00014503,2]
[408534963,1773855032304,-500.0,0.00014503,2]
[408534964,1773855032313,-690.7998852,0.00014503,2]
[408534966,1773855032323,-690.7998852,0.00014503,2]
[408534968,1773855032334,-251.85940591,0.00014503,2]
[408534970,1773855032343,-690.7998852,0.00014503,2]
[408534972,1773855032352,-690.7998852,0.00014503,2]
[408534974,1773855032360,-690.7998852,0.00014503,2]
[408534976,1773855032370,-690.7998852,0.00014503,2]
[408534978,1773855032379,-690.7998852,0.00014503,2]
[408534980,1773855032388,-690.7998852,0.00014503,2]
[408534982,1773855032398,-690.7998852,0.00014503,2]
[408534984,1773855032407,-690.7998852,0.00014503,2]
[408534985,1773855032416,-690.7998852,0.00014503,2]
[408534986,1773855032426,-690.7998852,0.00014503,2]
[408534987,1773855032435,-690.7998852,0.00014503,2]
[408534988,1773855032445,-690.7998852,0.00014503,2]
[408534989,1773855032454,-690.7998852,0.00014503,2]
[408534990,1773855032463,-690.7998852,0.00014503,2]
[408534991,1773855032473,-690.7998852,0.00014503,2]
[408534992,1773855032483,-690.7998852,0.00014503,2]
[408534993,1773855032494,-690.7998852,0.00014503,2]
[408534994,1773855032504,-690.7998852,0.00014503,2]
[408534995,1773855032513,-690.7998852,0.00014503,2]
[408534996,1773855032522,-690.7998852,0.00014503,2]
[408534997,1773855032532,-690.7998852,0.00014503,2]
[408534998,1773855032541,-690.7998852,0.00014503,2]
[408534999,1773855032550,-690.7998852,0.00014503,2]
[408535000,1773855032560,-690.7998852,0.00014503,2]
[408535001,1773855032568,-690.7998852,0.00014503,2]
[408535002,1773855032577,-690.7998852,0.00014503,2]
[408535003,1773855032586,-690.7998852,0.00014503,2]
[408535004,1773855032596,-690.7998852,0.00014503,2]
[408535005,1773855032606,-690.7998852,0.00014503,2]
[408535006,1773855032615,-690.7998852,0.00014503,2]
[408535007,1773855032625,-690.7998852,0.00014503,2]
[408535008,1773855032636,-690.7998852,0.00014503,2]
[408535009,1773855032646,-690.7998852,0.00014503,2]
[408535010,1773855032655,-690.7998852,0.00014503,2]
[408535011,1773855032663,-690.7998852,0.00014503,2]
[408535012,1773855032674,-690.7998852,0.00014503,2]
[408535013,1773855032684,-690.7998852,0.00014503,2]
[408535014,1773855032694,-690.7998852,0.00014503,2]
[408535015,1773855032705,-690.7998852,0.00014503,2]
[408535016,1773855032716,-690.7998852,0.00014503,2]
[408535017,1773855032726,-690.7998852,0.00014503,2]
[408535018,1773855032735,-690.7998852,0.00014503,2]
[408535019,1773855032745,-690.7998852,0.00014503,2]
[408535020,1773855032754,-690.7998852,0.00014503,2]
[408535021,1773855032763,-690.7998852,0.00014503,2]
[408535022,1773855032773,-690.7998852,0.00014503,2]
[408535023,1773855032783,-690.7998852,0.00014503,2]
[408535024,1773855032792,-690.7998852,0.00014503,2]
[408535025,1773855032802,-690.7998852,0.00014503,2]
[408535026,1773855032812,-690.7998852,0.00014503,2]
[408535027,1773855032822,-690.7998852,0.00014503,2]
[408535028,1773855032831,-690.7998852,0.00014503,2]
[408535029,1773855032841,-690.7998852,0.00014503,2]
[408535030,1773855032850,-690.7998852,0.00014503,2]
[408535031,1773855032860,-690.7998852,0.00014503,2]
[408535032,1773855032870,-690.7998852,0.00014503,2]
[408535033,1773855032880,-690.7998852,0.00014503,2]
[408535034,1773855032889,-690.7998852,0.00014503,2]
[408535035,1773855032899,-690.7998852,0.00014503,2]
[408535036,1773855032909,-690.7998852,0.00014503,2]
[408535037,1773855032919,-690.7998852,0.00014503,2]
[408535038,1773855032928,-869.21195887,0.00014503,2]
[408535039,1773855032938,-869.21195887,0.00014503,2]
[408535040,1773855032947,-869.21195887,0.00014503,2]
[408535041,1773855032957,-869.21195887,0.00014503,2]
[408535042,1773855032966,-869.21195887,0.00014503,2]
[408535043,1773855032975,-869.21195887,0.00014503,2]
[408535044,1773855032985,-869.21195887,0.00014503,2]
[408535045,1773855032995,-869.21195887,0.00014503,2]
[408535046,1773855033004,-869.21195887,0.00014503,2]
[408535047,1773855033014,-869.21195887,0.00014503,2]
[408535048,1773855033023,-869.21195887,0.00014503,2]
[408535049,1773855033033,-869.21195887,0.00014503,2]
[408535050,1773855033047,-869.21195887,0.00014503,2]
[408535051,1773855033057,-869.21195887,0.00014503,2]
[408535052,1773855033067,-869.21195887,0.00014503,2]
[408535053,1773855033076,-869.21195887,0.00014503,2]
[408535054,1773855033087,-869.21195887,0.00014503,2]
[408535055,1773855033096,-869.21195887,0.00014503,2]
[408535056,1773855033105,-869.21195887,0.00014503,2]
[408535057,1773855033115,-869.21195887,0.00014503,2]
[408535058,1773855033127,-869.21195887,0.00014503,2]
[408535059,1773855033137,-869.21195887,0.00014503,2]
[408535060,1773855033146,-869.21195887,0.00014503,2]
[408535061,1773855033156,-869.21195887,0.00014503,2]
[408535062,1773855033168,-869.21195887,0.00014503,2]
[408535063,1773855033178,-869.21195887,0.00014503,2]
[408535064,1773855033188,-869.21195887,0.00014503,2]
[408535065,1773855033197,-500.0,0.00014504,2]
[408535066,1773855033207,-150.99,0.00014504,2]
[408535067,1773855033216,-4127.99167612,0.00014504,2]
[408535068,1773855033230,-8690.10832388,0.00014504,2]
[408535069,1773855033239,-35501.03668808,0.00014504,2]
[408535072,1773855037802,-22986.15743444,0.00014504,2]
[408535073,1773855037814,-7121.62979105,0.00014504,2]
[408535074,1773855037919,-6187.95,0.00014504,2]
[408535075,1773855037930,-324.27,0.00014504,2]
[408535076,1773855037969,-568.4,0.00014504,2]
[408535077,1773855038024,-4042.32608643,0.00014504,2]
[408535080,1773855038036,-9999.99,0.00014504,2]
[408535081,1773855038046,-9999.99,0.00014504,2]
[408535084,1773855038056,-6924.54,0.00014504,2]
[408535086,1773855038066,-9999.99,0.00014504,2]
[408535087,1773855038075,-1651.98,0.00014504,2]
[408535088,1773855038086,-2264.79,0.00014504,2]
[408535090,1773855038096,-999.99,0.00014504,2]
[408535092,1773855038105,-9347.96,0.00014504,2]
[408535093,1773855038116,-150.99,0.00014504,2]
[408535094,1773855038125,-299.99,0.00014504,2]
[408535095,1773855038134,-9999.99,0.00014504,2]
[408535096,1773855038143,-194.0,0.00014595,2]
[408535097,1773855038153,-500.0,0.00014598,2]
[408535099,1773855038162,-500.0,0.00014598,2]
[408535101,1773855038171,-500.0,0.00014598,2]
[408535102,1773855038181,-500.0,0.00014598,2]
[408535103,1773855038190,-500.0,0.00014598,2]
[408535104,1773855038200,-500.0,0.00014598,2]
[408535105,1773855038210,-1988.65371815,0.00014618,2]
[408535106,1773855038219,-500.0,0.00014693,2]
[408535107,1773855038230,-347.62942741,0.00014717,2]
[408535108,1773855038240,-500.0,0.00014778,2]
[408535109,1773855038250,-159.91505138,0.00014817,2]
[408535110,1773855038259,-1988.65371815,0.00014831,2]
[408535111,1773855038270,-500.0,0.00014848,2]
[408535112,1773855038279,-500.0,0.00014848,2]
[408535113,1773855038288,-500.0,0.00014848,2]
[408535114,1773855038298,-500.0,0.00014848,2]
[408535115,1773855038309,-500.0,0.00014869,2]
[408535116,1773855038319,-500.0,0.00014869,2]
[408535117,1773855038330,-500.0,0.00014869,2]
[408535118,1773855038339,-500.0,0.00014869,2]
[408535119,1773855038349,-500.0,0.00014869,2]
[408535120,1773855038358,-500.0,0.00014869,2]
[408535121,1773855038368,-500.0,0.00014869,2]
[408535122,1773855038376,-501.27392354,0.00014869,2]
[408535123,1773855038386,-250.0,0.00014879,2]
[408535124,1773855038395,-500.0,0.00014879,2]
[408535125,1773855038404,-1377.06999647,0.00014879,2]
[408535126,1773855038414,-250.0,0.00014879,2]
[408535127,1773855038424,-500.0,0.00014879,2]
[408535128,1773855038435,-8232.6885148,0.00014879,2]
[408535129,1773855038445,-500.0,0.00014879,2]
[408535130,1773855038454,-277.82178945,0.00014879,2]
[408535131,1773855038463,-500.0,0.00014879,2]
[408535132,1773855038472,-500.0,0.00014879,2]
[408535133,1773855038481,-500.0,0.00014879,2]
[408535134,1773855038491,-500.0,0.00014879,2]
[408535135,1773855038501,-151.0,0.00014879,2]
[408535136,1773855038510,-500.0,0.00014879,2]
[408535137,1773855038519,-500.0,0.00014879,2]
[408535138,1773855038528,-500.0,0.00014879,2]
[408535139,1773855038537,-500.0,0.00014879,2]
[408535140,1773855038546,-500.0,0.00014879,2]
[408535141,1773855038556,-500.0,0.00014879,2]
[408535142,1773855038565,-500.0,0.00014879,2]
[408535143,1773855038574,-500.0,0.00014879,2]
[408535144,1773855038582,-500.0,0.00014879,2]
[408535145,1773855038591,-500.0,0.00014879,2]
[408535146,1773855038600,-500.0,0.00014879,2]
[408535147,1773855038609,-500.0,0.00014879,2]
[408535148,1773855038619,-500.0,0.00014879,2]
[408535149,1773855038628,-500.0,0.00014879,2]
[408535150,1773855038638,-186.96675001,0.00014879,2]
[408535151,1773855038649,-500.0,0.00014879,2]
[408535152,1773855038658,-500.0,0.00014879,2]
[408535153,1773855038667,-250.0,0.00014879,2]
[408535154,1773855038676,-250.0,0.00014879,2]
[408535155,1773855038685,-500.0,0.00014879,2]
[408535156,1773855038695,-500.0,0.00014879,2]
[408535157,1773855038704,-250.0,0.00014879,2]
[408535158,1773855038713,-500.0,0.00014879,2]
[408535159,1773855038723,-250.0,0.00014879,2]
[408535160,1773855038732,-500.0,0.00014879,2]
[408535161,1773855038742,-500.0,0.00014879,2]
[408535162,1773855038751,-250.0,0.00014879,2]
[408535163,1773855038760,-500.0,0.00014879,2]
[408535164,1773855038769,-500.0,0.00014879,2]
[408535165,1773855038778,-250.0,0.00014879,2]
[408535166,1773855038787,-500.0,0.00014879,2]
[408535167,1773855038797,-500.0,0.00014879,2]
[408535168,1773855038805,-250.0,0.00014879,2]
[408535169,1773855038815,-500.0,0.00014879,2]
[408535170,1773855038824,-500.0,0.00014879,2]
[408535171,1773855038833,-250.0,0.00014879,2]
[408535172,1773855038842,-500.0,0.00014879,2]
[408535173,1773855038851,-174.61919141,0.00014879,2]
[408535174,1773855038860,-500.0,0.00014879,2]
[408535175,1773855038869,-250.0,0.00014879,2]
[408535176,1773855038878,-500.0,0.00014879,2]
[408535177,1773855038887,-250.0,0.00014879,2]
[408535178,1773855038897,-500.0,0.00014879,2]
[408535179,1773855038906,-250.0,0.00014879,2]
[408535180,1773855038916,-200.0,0.00014879,2]
[408535181,1773855038925,-500.0,0.00014879,2]
[408535182,1773855038934,-250.0,0.00014879,2]
[408535183,1773855038944,-250.0,0.00014879,2]
[408535184,1773855038953,-250.0,0.00014879,2]
[408535185,1773855038963,-151.0,0.00014879,2]
[408535186,1773855038971,-151.0,0.00014879,2]
[408535187,1773855038980,-151.0,0.00014879,2]
[408535188,1773855038989,-201.04041191,0.00014879,2]
[408535189,1773855038998,-250.0,0.00014879,2]
[408535190,1773855039008,-250.0,0.00014879,2]
[408535191,1773855039017,-250.0,0.00014879,2]
[408535192,1773855039025,-274.1930115,0.00014879,2]
[408535193,1773855039034,-250.0,0.00014879,2]
[408535194,1773855039047,-250.0,0.00014879,2]
[408535195,1773855039056,-250.0,0.00014879,2]
[408535196,1773855039066,-250.0,0.00014879,2]
[408535197,1773855039074,-250.0,0.00014879,2]
[408535198,1773855039085,-250.0,0.00014879,2]
[408535199,1773855039094,-250.0,0.00014879,2]
[408535200,1773855039103,-250.0,0.00014879,2]
[408535201,1773855039113,-299.00268145,0.00014879,2]
[408535202,1773855039123,-669.13395939,0.00014879,2]
[408535203,1773855039132,-742.47,0.00014879,2]
[408535204,1773855039142,-160.12427518,0.00014886,2]
[408535205,1773855039151,-28.04217863,0.00014899,2]
[408535206,1773855040041,-13004.61333006,0.00014886,2]
[408535207,1773855040052,-971.95782137,0.00014899,2]
[408535208,1773855040063,-1000.0,0.00014899,2]
[408535209,1773855040072,-1000.0,0.00014899,2]
[408535210,1773855040083,-853.649,0.00014899,2]
[408535211,1773855040092,-172.22247734,0.000149,2]
[408535212,1773855040102,-200.0,0.000149,5]
[408535213,1773855040113,-200.0,0.00014929,2]
[408535214,1773855040128,-500.0,0.00014934,2]
[408535215,1773855040139,-151.0,0.00014934,2]
[408535216,1773855040150,-500.0,0.0001498,2]
[408535217,1773855040159,-500.0,0.00014989,2]
[408535218,1773855040169,-151.0,0.00014989,2]
[408535219,1773855040179,-691.42612576,0.00014998,2]
[408535220,1773855040188,-500.0,0.00014999,2]
[408535221,1773855040197,-800.0,0.00015,5]
[408535222,1773855040207,-12774.6359189,0.00015,7]
[408535223,1773855040217,-300.0,0.00015,5]
[408535224,1773855040228,-160.12424924,0.00015,2]
[408535225,1773855040238,-160.11975848,0.00015,2]
[408535226,1773855040249,-160.12352153,0.00015,2]
[408535227,1773855040258,-160.92724101,0.00015,2]
[408535228,1773855040267,-160.10375546,0.00015,2]
[408535229,1773855040277,-500.0,0.00015044,2]
[408535230,1773855040286,-151.0,0.00015044,2]
[408535231,1773855040295,-1988.65371815,0.00015045,2]
[408535232,1773855040304,-500.0,0.00015052,2]
[408535233,1773855040313,-1461.48110588,0.00015069,2]
[408535234,1773855040322,-617.37656424,0.00015069,2]
[408535235,1773855040331,-1280.52464246,0.00015069,2]
[408535236,1773855040340,-249.0,0.00015087,2]
[408535237,1773855040349,-500.0,0.00015099,2]
[408535238,1773855040359,-151.0,0.00015099,2]
[408535239,1773855040368,-1700.0,0.000151,5]
[408535240,1773855040377,-400.0,0.000151,5]
[408535241,1773855040386,-600.0,0.000151,5]
[408535242,1773855040395,-449.133165,0.00015143,7]
[408535243,1773855040404,-742.47,0.00015153,2]
[408535244,1773855040413,-500.0,0.00015154,2]
[408535245,1773855040422,-151.0,0.00015154,2]
[408535246,1773855040431,-249.0,0.00015168,2]
[408535247,1773855040440,-2399.74107951,0.000152,2]
[408535248,1773855040449,-2500.0,0.000152,5]
[408535249,1773855040458,-600.0,0.000152,5]
[408535250,1773855040468,-900.0,0.000152,5]
[408535251,1773855040477,-7012.58060197,0.000152,2]
[408535252,1773855040486,-5000.0,0.000152,2]
[408535253,1773855040495,-367.82087527,0.00015206,2]
[408535254,1773855040505,-500.0,0.00015209,2]
[408535255,1773855040514,-151.0,0.00015209,2]
[408535256,1773855040523,-208.213633,0.00015216,7]
[408535257,1773855040532,-249.0,0.00015243,2]
[408535258,1773855040541,-1988.65371815,0.00015259,2]
[408535259,1773855040550,-151.0,0.00015264,2]
[408535260,1773855040559,-151.0,0.00015277,2]
[408535261,1773855040569,-3400.0,0.000153,5]
[408535262,1773855040578,-900.0,0.000153,5]
[408535263,1773855040587,-1200.0,0.000153,5]
[408535264,1773855040595,-500.0,0.00015309,2]
[408535265,1773855040604,-500.0,0.00015309,2]
[408535266,1773855040613,-526.51350935,0.00015309,2]
[408535267,1773855040622,-500.0,0.00015309,2]
[408535268,1773855040634,-500.0,0.00015325,2]
[408535269,1773855040644,-350.0,0.00015336,3]
[408535270,1773855040656,-296.486788,0.00015338,7]
[408535271,1773855040666,-391.797778,0.00015338,7]
[408535272,1773855040676,-710.21256861,0.00015341,2]
[408535273,1773855040687,-500.0,0.00015341,2]
[408535274,1773855040696,-357.25381508,0.00015341,2]
[408535275,1773855040706,-225.31005811,0.00015341,2]
[408535276,1773855040715,-500.0,0.00015341,2]
[408535277,1773855040724,-362.99918872,0.00015341,2]
[408535278,1773855040733,-500.0,0.00015341,2]
[408535279,1773855040743,-232.39744928,0.00015341,2]
[408535280,1773855040753,-500.0,0.00015342,2]
[408535281,1773855040763,-500.0,0.00015342,2]
[408535282,1773855040772,-500.0,0.00015342,2]
[408535283,1773855040781,-500.0,0.00015342,2]
[408535284,1773855040791,-500.0,0.00015342,2]
[408535285,1773855040800,-550.79970363,0.00015342,2]
[408535286,1773855040809,-504.32218719,0.00015342,2]
[408535287,1773855040818,-500.0,0.00015342,2]
[408535288,1773855040827,-500.0,0.00015342,2]
[408535289,1773855040836,-150.37503432,0.00015342,2]
[408535290,1773855040845,-500.0,0.00015342,2]
[408535291,1773855040854,-500.0,0.00015342,2]
[408535292,1773855040863,-434.47795526,0.00015342,2]
[408535293,1773855040872,-150.0,0.00015342,2]
[408535294,1773855040881,-150.0,0.00015342,2]
[408535295,1773855040890,-150.0,0.00015342,2]
[408535296,1773855040899,-158.80130543,0.00015342,2]
[408535297,1773855040908,-150.0,0.00015342,2]
[408535298,1773855040917,-150.0,0.00015342,2]
[408535299,1773855040926,-150.0,0.00015342,2]
[408535300,1773855040935,-295.39810934,0.00015342,2]
[408535301,1773855040943,-150.0,0.00015342,2]
[408535302,1773855040952,-150.0,0.00015342,2]
[408535303,1773855040961,-150.0,0.00015342,2]
[408535304,1773855040970,-150.0,0.00015342,2]
[408535305,1773855040979,-150.0,0.00015342,2]
[408535306,1773855040988,-250.0,0.00015342,2]
[408535307,1773855040998,-500.0,0.00015342,2]
[408535308,1773855041009,-500.0,0.00015342,2]
[408535309,1773855041184,-500.0,0.00015342,2]
[408535310,1773855041198,-500.0,0.00015342,2]
[408535311,1773855041207,-500.0,0.00015342,2]
[408535312,1773855041216,-597.01723179,0.00015342,2]
[408535313,1773855041225,-1000.0,0.00015396,2]
[408535314,1773855041234,-614.12831155,0.00015396,2]
[408535315,1773855041243,-1000.0,0.00015396,2]
[408535316,1773855041252,-4200.0,0.000154,5]
[408535317,1773855041261,-1100.0,0.000154,5]
[408535318,1773855041270,-200.0,0.000154,2]
[408535319,1773855041280,-1500.0,0.000154,5]
[408535320,1773855041289,-168.0,0.00015401,2]
[408535321,1773855041299,-500.0,0.00015417,2]
[408535322,1773855041309,-1000.96706239,0.00015417,2]
[408535323,1773855041318,-869.73783683,0.00015417,2]
[408535324,1773855041328,-1000.0,0.00015417,2]
[408535325,1773855041338,-1000.0,0.00015417,2]
[408535326,1773855041348,-500.0,0.00015417,2]
[408535327,1773855041357,-255.0,0.00015418,2]
[408535328,1773855041367,-151.0,0.00015427,2]
[408535329,1773855041376,-181.08010149,0.00015427,2]
[408535330,1773855041385,-200.0,0.00015427,2]
[408535331,1773855041395,-693.89191589,0.00015427,2]
[408535332,1773855041404,-742.47,0.00015427,2]
[408535333,1773855041417,-1600.0,0.00015452,2]
[408535334,1773855041427,-1988.65371815,0.00015473,2]
[408535335,1773855041438,-235.0,0.00015488,2]
[408535336,1773855041448,-182.0,0.00015488,2]
[408535337,1773855041457,-800.0,0.000155,5]
[408535338,1773855041467,-200.0,0.000155,5]
[408535339,1773855041477,-300.0,0.000155,5]
[408535340,1773855041486,-1680.0,0.00015552,2]
[408535341,1773855041495,-1741.0,0.00015592,2]
[408535342,1773855041505,-237.143998,0.00015592,2]
[408535343,1773855041514,-237.143998,0.00015592,2]
[408535344,1773855041526,-237.143998,0.00015592,2]
[408535345,1773855041536,-237.143998,0.00015592,2]
[408535346,1773855041546,-194.0,0.00015595,2]
[408535347,1773855041556,-500.0,0.00015599,2]
[408535348,1773855041565,-2493.0,0.000156,5]
[408535349,1773855041575,-800.0,0.000156,5]
[408535350,1773855041585,-200.0,0.000156,5]
[408535351,1773855041595,-300.0,0.000156,5]
[408535352,1773855041604,-154.10725797,0.00015614,2]
[408535353,1773855041613,-2775.35226037,0.0001568,2]
[408535354,1773855041622,-1988.65371815,0.00015686,2]
[408535355,1773855041631,-800.0,0.000157,5]
[408535356,1773855041640,-200.0,0.000157,5]
[408535357,1773855041650,-300.0,0.000157,5]
[408535358,1773855041659,-742.47,0.00015701,2]
[408535359,1773855041668,-350.0,0.00015724,3]
[408535360,1773855041678,-500.0,0.00015726,2]
[408535361,1773855041688,-1000.0,0.00015726,2]
[408535362,1773855041698,-500.0,0.00015728,2]
[408535363,1773855041707,-500.0,0.00015728,2]
[408535364,1773855041716,-6505.23252365,0.00015732,2]
[408535365,1773855041725,-168.0,0.00015758,2]
[408535366,1773855041735,-510.138184,0.000158,2]
[408535367,1773855041744,-5000.0,0.000158,2]
[408535368,1773855041756,-800.0,0.000158,5]
[408535369,1773855041766,-200.0,0.000158,5]
[408535370,1773855041775,-301.63094692,0.000158,2]
[408535371,1773855041784,-300.0,0.000158,5]
[408535372,1773855041794,-510.13818395,0.00015817,2]
[408535373,1773855041803,-444.51,0.00015817,2]
[408535374,1773855041812,-510.13818395,0.00015833,2]
[408535375,1773855041821,-641.16979,0.0001584,2]
[408535376,1773855041830,-641.1698,0.0001584,2]
[408535377,1773855041840,-510.13818395,0.0001585,2]
[408535378,1773855041849,-641.16979,0.0001585,2]
[408535379,1773855041859,-301.6309469,0.0001585,2]
[408535380,1773855041868,-510.13818395,0.00015867,2]
[408535381,1773855041878,-168.0,0.00015867,2]
[408535382,1773855041887,-200.0,0.00015872,2]
[408535383,1773855041896,-500.0,0.00015873,2]
[408535384,1773855041906,-510.13818395,0.00015883,2]
[408535385,1773855041915,-199.10037192,0.0001589,2]
[408535386,1773855041924,-500.0,0.00015899,2]
[408535387,1773855041933,-500.0,0.00015899,2]
[408535388,1773855041943,-500.0,0.00015899,2]
[408535389,1773855041953,-500.0,0.00015899,2]
[408535390,1773855041963,-329.190207,0.00015899,2]
[408535391,1773855041972,-500.0,0.00015899,2]
[408535392,1773855041981,-308.46140861,0.00015899,2]
[408535393,1773855041991,-500.0,0.00015899,2]
[408535394,1773855042001,-574.55,0.00015899,2]
[408535395,1773855042011,-500.0,0.00015899,2]